bitfinex/quotes_SOLUSD_20251216
["timestamp","ask_amount","ask_price","bid_price","bid_amount"]
[1765914153629,0.8,127.54,127.52,8.6]
[1765914153835,0.67,127.53,127.52,8.6]
[1765914154029,0.67,127.52,127.51,8.6]
[1765914154609,10.97277069,127.52,127.51,8.6]
[1765914154805,10.30277069,127.52,127.51,8.6]
[1765914155539,10.99277069,127.52,127.51,8.6]
[1765914156395,3.15086354,127.52,127.51,8.6]
[1765914157727,7.84159552,127.53,127.51,8.6]
[1765914157728,10.99245906,127.53,127.51,8.6]
[1765914159442,10.40174347,127.54,127.51,16.44251388]
[1765914159647,0.69,127.53,127.51,8.6]
[1765914159939,3.15086354,127.53,127.51,8.6]
[1765914160144,0.69,127.52,127.51,8.6]
[1765914160354,3.15086354,127.52,127.51,8.6]
[1765914160651,0.69,127.51,127.49,8.6]
[1765914160952,3.15086354,127.5,127.49,8.6]
[1765914161242,3.15086354,127.5,127.48,8.6]
[1765914162039,0.69,127.5,127.48,8.6]
[1765914162349,3.15086354,127.5,127.48,8.6]
[1765914163139,2.46086354,127.49,127.48,8.6]
[1765914166045,2.46086354,127.49,127.47,8.5645478]
[1765914166347,8.53335503,127.5,127.48,8.6]
[1765914166519,2.46086354,127.49,127.48,8.6]
[1765914167233,10.99410279,127.5,127.48,8.6]
[1765914168147,0.69,127.48,127.45,0.72]
[1765914168327,0.69,127.48,127.46,16.4452947]
[1765914168516,3.15086354,127.49,127.46,17.1652947]
[1765914168945,3.15086354,127.49,127.46,16.4452947]
[1765914169117,3.15086354,127.49,127.46,17.1652947]
[1765914169547,3.15086354,127.49,127.47,0.72]
[1765914170548,3.15086354,127.49,127.46,17.1652947]
[1765914170730,10.99463226,127.49,127.46,17.1652947]
[1765914171131,10.99463226,127.49,127.47,8.6]
[1765914171522,10.99463226,127.49,127.47,9.32]
[1765914172321,10.99463226,127.49,127.47,8.6]
[1765914173242,10.99463226,127.49,127.48,8.6]
[1765914174149,0.69,127.48,127.4,0.72]
[1765914174322,3.15086354,127.48,127.44,0.72]
[1765914174521,3.15086354,127.48,127.45,9.32]
[1765914175243,3.15086354,127.48,127.45,17.16620666]
[1765914176146,10.30414242,127.5,127.46,0.72]
[1765914176539,10.99414242,127.5,127.46,0.72]
[1765914176946,7.84327888,127.5,127.46,0.72]
[1765914177136,10.99414242,127.5,127.46,0.72]
[1765914177337,10.99414242,127.5,127.47,0.72]
[1765914177636,10.99414242,127.5,127.48,8.6]
[1765914177955,8.53327888,127.5,127.48,8.6]
[1765914178129,10.30414242,127.5,127.48,8.6]
[1765914178331,0.69,127.49,127.48,8.6]
[1765914179747,11.68847735,127.5,127.48,8.6]
[1765914179953,12.37847735,127.5,127.48,8.6]
[1765914180733,11.68847735,127.5,127.48,8.6]
[1765914180959,0.69,127.49,127.48,8.6]
[1765914181251,3.84519847,127.5,127.48,9.32]
[1765914181453,22.12550967,127.51,127.49,0.72]
[1765914181664,22.81550967,127.51,127.48,9.32]
[1765914182050,0.69,127.5,127.48,9.32]
[1765914182224,4.53519847,127.5,127.48,8.6]
[1765914182428,3.84519847,127.5,127.48,9.32]
[1765914182944,12.37857018,127.5,127.48,8.6]
[1765914183352,4.53519847,127.49,127.48,8.6]
[1765914184062,0.69,127.49,127.46,7.84524089]
[1765914184361,0.69,127.49,127.47,9.28]
[1765914184660,0.69,127.49,127.47,8.6]
[1765914185029,4.53519847,127.49,127.47,8.6]
[1765914185224,0.69,127.49,127.47,8.6]
[1765914185430,0.69,127.49,127.47,9.28]
[1765914185642,0.69,127.49,127.47,17.12495732]
[1765914186071,0.69,127.49,127.47,9.28]
[1765914186235,12.35857018,127.5,127.47,9.28]
[1765914186566,0.67,127.49,127.47,9.28]
[1765914187854,0.67,127.49,127.47,17.12490245]
[1765914188361,0.67,127.49,127.47,9.28]
[1765914188564,22.12557517,127.51,127.48,0.68]
[1765914188732,0.67,127.51,127.48,0.68]
[1765914189353,0.67,127.51,127.48,8.52422854]
[1765914189657,0.67,127.5,127.48,8.52422854]
[1765914189860,12.3578926,127.51,127.48,8.52422854]
[1765914191043,11.6878926,127.51,127.48,7.84422854]
[1765914191349,12.35836159,127.5,127.47,17.12477754]
[1765914192243,12.35836159,127.5,127.48,0.68]
[1765914193259,8.51316312,127.5,127.48,0.68]
[1765914193758,8.51316312,127.5,127.47,17.12477754]
[1765914193759,7.84316312,127.5,127.47,17.12477754]
[1765914193959,0.67,127.49,127.47,17.12477754]
[1765914194162,0.67,127.49,127.47,9.28]
[1765914194763,11.68836159,127.5,127.47,0.68]
[1765914194969,12.35836159,127.5,127.48,8.6]
[1765914195263,0.67,127.49,127.48,8.6]
[1765914196258,11.68822891,127.5,127.48,8.6]
[1765914196461,12.35822891,127.5,127.48,8.6]
[1765914196759,0.67,127.49,127.48,8.6]
[1765914197064,11.68822891,127.5,127.48,8.6]
[1765914197243,0.67,127.49,127.48,8.6]
[1765914200768,12.35822891,127.5,127.48,8.6]
[1765914201268,0.67,127.49,127.48,8.6]
[1765914202466,0.67,127.48,127.46,8.6]
[1765914202671,4.51506579,127.47,127.46,8.6]
[1765914202851,0.67,127.46,127.44,7.84659777]
[1765914203165,0.67,127.46,127.45,8.6]
[1765914203166,4.51506579,127.46,127.45,8.6]
[1765914203669,0.67,127.46,127.45,8.6]
[1765914203872,12.36020795,127.47,127.45,8.6]
[1765914204365,0.67,127.46,127.45,8.6]
[1765914204544,11.69020795,127.47,127.45,8.6]
[1765914204741,7.84514216,127.47,127.45,9.28]
[1765914205067,4.51506579,127.49,127.46,0.68]
[1765914205459,0.67,127.48,127.46,0.68]
[1765914205859,3.84506579,127.48,127.45,16.44619228]
[1765914206060,3.84506579,127.48,127.44,8.52653745]
[1765914206061,0.67,127.47,127.44,8.52653745]
[1765914206260,0.67,127.47,127.45,9.28]
[1765914206471,4.51506579,127.48,127.45,9.28]
[1765914206970,12.35966003,127.48,127.45,9.28]
[1765914207276,4.51506579,127.47,127.45,9.28]
[1765914207462,0.67,127.47,127.45,9.28]
[1765914207777,0.67,127.47,127.45,8.6]
[1765914208175,7.84459424,127.48,127.46,0.68]
[1765914208357,11.68966003,127.48,127.46,0.68]
[1765914208552,12.35966003,127.48,127.46,0.68]
[1765914209073,10.43767296,127.5,127.47,0.68]
[1765914209274,24.12259548,127.51,127.48,8.6]
[1765914209482,24.12259548,127.51,127.48,9.28]
[1765914210073,4.51506579,127.51,127.48,9.28]
[1765914210282,0.67,127.5,127.48,9.28]
[1765914211477,8.51321934,127.5,127.48,9.28]
[1765914212892,4.51506579,127.49,127.48,8.6]
[1765914213072,0.67,127.48,127.45,8.5256429]
[1765914213257,4.51506579,127.48,127.47,8.6]
[1765914213455,12.35943353,127.48,127.47,8.6]
[1765914215263,0.67,127.47,127.43,8.53714001]
[1765914215589,3.84506579,127.46,127.44,9.29]
[1765914216357,4.51506579,127.46,127.44,9.29]
[1765914216590,3.84506579,127.46,127.44,9.29]
[1765914216888,4.51506579,127.47,127.45,0.69]
[1765914217187,4.51506579,127.47,127.44,9.29]
[1765914217490,12.36044731,127.47,127.44,9.29]
[1765914217865,12.36044731,127.47,127.44,8.6]
[1765914218195,12.36044731,127.47,127.45,0.69]
[1765914218493,8.51538152,127.47,127.45,0.69]
[1765914218676,12.36044731,127.47,127.44,8.6]
[1765914219183,12.36044731,127.47,127.44,9.29]
[1765914219385,11.69044731,127.47,127.45,0.69]
[1765914219589,7.84538152,127.47,127.45,0.69]
[1765914224976,8.51538152,127.47,127.45,0.69]
[1765914227996,12.36044731,127.47,127.45,0.69]
[1765914228300,12.35943353,127.48,127.45,8.5361828]
[1765914228717,0.67,127.47,127.45,0.69]
[1765914231308,12.36007894,127.47,127.44,16.44652949]
[1765914231511,12.36007894,127.47,127.45,0.69]
[1765914231809,8.51501315,127.47,127.45,0.69]
[1765914233525,0.67,127.46,127.44,8.6]
[1765914233686,0.67,127.46,127.44,9.29]
[1765914235199,3.84506579,127.47,127.44,16.44667494]
[1765914235395,8.5146784,127.48,127.45,0.69]
[1765914235589,8.5146784,127.48,127.45,8.53614936]
[1765914235804,8.5146784,127.48,127.46,0.69]
[1765914236002,0.67,127.47,127.45,8.53614936]
[1765914236309,8.5146784,127.48,127.45,7.84614936]
[1765914236510,8.5146784,127.48,127.46,0.69]
[1765914236698,0.67,127.47,127.45,8.53614936]
[1765914236892,7.8446784,127.48,127.45,8.53614936]
[1765914237092,0.67,127.47,127.45,8.53614936]
[1765914237313,12.35974419,127.48,127.45,8.53614936]
[1765914237895,14.28273875,127.49,127.46,0.69]
[1765914238101,22.79667512,127.49,127.46,0.69]
[1765914238409,0.67,127.48,127.46,0.69]
[1765914238612,22.12667512,127.49,127.46,0.69]
[1765914238794,10.43767296,127.49,127.47,9.29]
[1765914239593,0.67,127.49,127.47,9.29]
[1765914240097,7.84282139,127.51,127.48,0.69]
[1765914240828,4.19937909,127.54,127.49,0.69]
[1765914241002,0.1,127.54,127.51,0.69]
[1765914241897,0.77,127.54,127.51,0.69]
[1765914242094,0.1,127.54,127.51,0.69]
[1765914242409,0.77,127.54,127.51,0.69]
[1765914243024,0.77,127.54,127.52,0.69]
[1765914243223,0.77,127.54,127.53,8.6]
[1765914243520,0.1,127.54,127.53,8.6]
[1765914244234,0.81,127.54,127.53,8.6]
[1765914244593,0.1,127.54,127.53,8.6]
[1765914244920,0.1,127.54,127.53,16.44129224]
[1765914245101,0.1,127.54,127.53,17.12129224]
[1765914246999,0.1,127.54,127.53,8.6]
[1765914248531,0.1,127.54,127.53,17.12129224]
[1765914252628,0.1,127.54,127.53,16.44129224]
[1765914252934,0.1,127.54,127.53,17.12129224]
[1765914253335,0.1,127.54,127.53,9.28]
[1765914254830,0.1,127.54,127.53,17.12129224]
[1765914255005,0.1,127.54,127.53,19.58215152]
[1765914256912,0.1,127.54,127.53,16.44129224]
[1765914257112,0.1,127.54,127.53,17.12129224]
[1765914257715,0.1,127.54,127.53,8.52129224]
[1765914258017,0.1,127.54,127.53,17.12129224]
[1765914258216,0.1,127.54,127.53,19.58215152]
[1765914258533,0.1,127.54,127.53,30.01982448]
[1765914258726,0.1,127.54,127.53,33.1604047]
[1765914259830,1e-08,127.54,127.53,41.97034962]
[1765914261087,1e-08,127.55,127.54,9.48994492]
[1765914261340,1e-08,127.55,127.54,12.73487194]
[1765914261718,1e-08,127.55,127.54,15.87471259]
[1765914263118,1e-08,127.55,127.54,23.71539002]
[1765914265472,1e-08,127.55,127.54,23.71050728]
[1765914267170,1e-08,127.55,127.54,46.86049629]
[1765914267863,1e-08,127.55,127.54,47.86049628]
[1765914268178,1e-08,127.55,127.54,46.86049629]
[1765914268877,1e-08,127.55,127.54,47.86049628]
[1765914271859,1e-08,127.55,127.54,46.86049629]
[1765914284078,0.1,127.57,127.56,11.12767296]
[1765914284288,0.1,127.57,127.56,22.1836495]
[1765914285381,0.1,127.57,127.56,30.0230976]
[1765914288596,0.1,127.57,127.56,27.56712106]
[1765914288891,0.1,127.57,127.56,30.0230976]
[1765914289092,0.82,127.57,127.56,18.27712106]
[1765914289258,0.82,127.57,127.56,29.3330976]
[1765914289259,0.1,127.57,127.56,29.3330976]
[1765914289458,0.82,127.57,127.56,18.27712106]
[1765914289686,0.82,127.57,127.56,16.4394481]
[1765914291293,0.82,127.57,127.55,27.44021952]
[1765914291501,0.82,127.57,127.56,8.6]
[1765914291795,0.82,127.57,127.56,2.45597654]
[1765914291976,0.82,127.57,127.56,11.05597654]
[1765914292293,0.82,127.57,127.56,2.45597654]
[1765914292470,0.82,127.57,127.56,11.05597654]
[1765914292665,0.1,127.57,127.56,11.05597654]
[1765914293289,0.82,127.57,127.56,11.05597654]
[1765914293494,0.82,127.57,127.56,18.89542464]
[1765914293790,0.82,127.57,127.56,16.4394481]
[1765914293992,0.82,127.57,127.56,18.89542464]
[1765914297377,0.1,127.57,127.56,19.58542464]
[1765914297764,0.1,127.57,127.56,22.04140118]
[1765914297966,0.1,127.6,127.56,21.35140118]
[1765914298200,0.1,127.6,127.59,13.5836495]
[1765914298397,0.1,127.6,127.59,22.1836495]
[1765914299096,0.1,127.6,127.59,19.03767296]
[1765914299299,0.1,127.6,127.59,21.4936495]
[1765914299469,0.1,127.6,127.59,30.02125432]
[1765914299669,0.1,127.6,127.59,21.42125432]
[1765914299870,0.1,127.6,127.59,30.02125432]
[1765914301402,0.1,127.6,127.59,26.87527778]
[1765914301611,0.82,127.6,127.59,20.27296905]
[1765914304394,0.82,127.6,127.59,16.41760482]
[1765914306791,0.82,127.6,127.59,8.58]
[1765914309813,7.93702563,127.6,127.57,7.83852639]
[1765914310112,0.72,127.58,127.55,7.83973301]
[1765914310317,0.72,127.58,127.56,8.6]
[1765914310784,0.72,127.57,127.53,10.43767296]
[1765914310982,0.72,127.55,127.52,7.84158092]
[1765914311207,0.72,127.55,127.53,8.6]
[1765914312209,0.72,127.54,127.53,8.6]
[1765914315410,3.83536423,127.57,127.53,8.6]
[1765914315717,0.72,127.57,127.53,20.97665647]
[1765914316089,0.72,127.57,127.53,20.27665647]
[1765914316289,0.72,127.57,127.53,20.97665647]
[1765914317393,0.72,127.57,127.53,36.04452285]
[1765914317593,0.72,127.57,127.53,39.87988708]
[1765914317905,0.72,127.57,127.53,40.57988708]
[1765914320496,0.72,127.57,127.53,39.87988708]
[1765914320699,0.72,127.57,127.53,40.57988708]
[1765914320900,0.72,127.59,127.55,4.53536423]
[1765914321107,0.72,127.59,127.56,8.6]
[1765914322534,0.72,127.59,127.56,16.43899137]
[1765914323105,0.1,127.6,127.58,0.7]
[1765914323311,0.1,127.6,127.59,8.6]
[1765914323936,0.82,127.6,127.59,8.6]
[1765914325114,0.82,127.6,127.59,16.43760482]
[1765914326241,0.82,127.6,127.59,8.6]
[1765914326539,0.82,127.6,127.59,16.43760482]
[1765914326935,0.1,127.6,127.59,16.43760482]
[1765914329346,0.1,127.6,127.59,20.97296905]
[1765914330341,0.1,127.6,127.59,16.43760482]
[1765914330525,0.1,127.6,127.59,20.27296905]
[1765914330726,0.1,127.6,127.59,20.97296905]
[1765914331333,0.1,127.6,127.59,17.13760482]
[1765914331539,0.1,127.6,127.59,20.97296905]
[1765914331716,0.1,127.6,127.59,17.13760482]
[1765914332114,0.1,127.6,127.59,16.43760482]
[1765914332331,0.1,127.6,127.59,17.13760482]
[1765914332826,0.82,127.6,127.59,16.43760482]
[1765914334727,0.82,127.6,127.59,8.6]
[1765914336022,0.1,127.6,127.59,8.6]
[1765914336233,0.76,127.6,127.59,8.6]
[1765914337442,0.66,127.59,127.58,8.6]
[1765914337646,4.49764423,127.59,127.58,8.6]
[1765914339237,12.33524905,127.59,127.58,8.6]
[1765914343544,8.49760482,127.59,127.58,8.6]
[1765914343845,12.33524905,127.59,127.58,8.6]
[1765914346143,0.66,127.59,127.58,8.6]
[1765914346351,8.49760482,127.59,127.58,8.6]
[1765914347743,0.66,127.59,127.58,8.6]
[1765914348250,0.76,127.6,127.58,16.43821915]
[1765914348548,0.76,127.6,127.58,17.11821915]
[1765914348737,0.1,127.6,127.58,20.95586338]
[1765914349729,0.1,127.6,127.59,0.68]
[1765914349929,0.1,127.6,127.58,20.95586338]
[1765914352473,0.1,127.6,127.58,39.87141127]
[1765914352628,0.1,127.6,127.59,4.51764423]
[1765914352827,0.1,127.6,127.59,26.90411721]
[1765914354036,1e-08,127.6,127.59,26.90411721]
[1765914354271,0.1,127.62,127.6,0.68]
[1765914354435,0.1,127.62,127.61,22.71122679]
[1765914354772,1e-08,127.63,127.62,0.68]
[1765914355055,1e-08,127.63,127.62,8.35528846]
[1765914355836,1e-08,127.64,127.63,9.48994492]
[1765914356053,1e-08,127.65,127.64,0.68]
[1765914356225,0.1,127.68,127.66,19.92761788]
[1765914356434,0.1,127.68,127.66,23.08526211]
[1765914356630,0.1,127.68,127.67,29.76028281]
[1765914357035,0.1,127.68,127.67,26.70590794]
[1765914357036,1e-08,127.68,127.67,26.70590794]
[1765914357360,0.66,127.76,127.71,0.68]
[1765914357652,0.66,127.8,127.73,0.68]
[1765914358031,0.66,127.8,127.74,0.68]
[1765914358032,0.66,127.78,127.74,0.68]
[1765914358230,0.66,127.81,127.76,0.68]
[1765914358435,0.66,127.81,127.77,3.83764423]
[1765914358642,0.66,127.81,127.78,16.40595085]
[1765914359056,0.66,127.8,127.78,8.58]
[1765914360258,0.66,127.83,127.79,0.68]
[1765914360574,0.66,127.81,127.78,16.40581043]
[1765914360774,0.66,127.81,127.78,12.34345466]
[1765914360949,0.66,127.84,127.81,0.68]
[1765914361153,0.66,127.87,127.82,8.58]
[1765914361350,0.66,127.87,127.83,2.44627427]
[1765914361775,0.66,127.86,127.82,11.70627427]
[1765914361972,3.10627427,127.86,127.82,0.68]
[1765914362165,0.66,127.88,127.83,9.26]
[1765914362362,0.66,127.87,127.84,5.77624038]
[1765914362562,0.66,127.87,127.85,5.77624038]
[1765914362767,0.66,127.87,127.86,14.35624038]
[1765914363168,10.9267169,127.87,127.86,14.35624038]
[1765914363474,0.66,127.86,127.84,8.58]
[1765914363660,3.10627427,127.86,127.85,5.76698667]
[1765914363846,0.66,127.86,127.85,5.76698667]
[1765914364052,3.10627427,127.86,127.85,5.76698667]
[1765914364460,0.71,127.85,127.84,8.58]
[1765914364660,0.71,127.85,127.84,14.33882778]
[1765914365380,0.71,127.85,127.84,8.58]
[1765914365875,0.71,127.84,127.83,8.58]
[1765914366172,3.15627427,127.84,127.83,8.58]
[1765914366569,10.97855211,127.84,127.83,8.58]
[1765914368495,3.15627427,127.84,127.83,8.58]
[1765914368650,11.14767296,127.85,127.83,8.58]
[1765914368853,0.71,127.84,127.83,8.58]
[1765914371056,0.71,127.86,127.83,17.122888]
[1765914371376,0.71,127.87,127.84,0.72]
[1765914371867,0.71,127.86,127.83,17.122888]
[1765914372384,0.71,127.86,127.83,16.402888]
[1765914373054,0.71,127.86,127.83,17.122888]
[1765914374568,3.15627427,127.87,127.83,16.402888]
[1765914374770,0.71,127.87,127.84,0.72]
[1765914375482,3.15627427,127.87,127.84,0.72]
[1765914375785,3.15627427,127.87,127.83,35.96011243]
[1765914375984,3.15627427,127.87,127.83,36.68011243]
[1765914376377,0.71,127.86,127.83,36.68011243]
[1765914376687,3.15627427,127.87,127.84,0.72]
[1765914376984,0.71,127.86,127.83,36.68011243]
[1765914377781,3.15627427,127.86,127.83,16.402888]
[1765914378169,0.71,127.86,127.83,17.122888]
[1765914378478,0.71,127.88,127.84,0.72]
[1765914378674,3.15627427,127.88,127.84,0.72]
[1765914379076,2.44627427,127.88,127.84,0.72]
[1765914379278,0.71,127.88,127.84,0.72]
[1765914379986,2.44627427,127.89,127.85,0.72]
[1765914380167,3.15627427,127.9,127.86,9.3]
[1765914380485,3.15627427,127.9,127.87,7.82044263]
[1765914380677,3.15627427,127.9,127.87,8.54044263]
[1765914380874,3.15627427,127.9,127.87,28.09154922]
[1765914381075,3.15627427,127.89,127.87,7.82044263]
[1765914381273,0.71,127.9,127.86,16.40081819]
[1765914381679,3.15627427,127.89,127.86,16.40081819]
[1765914382192,3.15627427,127.89,127.86,17.12081819]
[1765914382591,3.15627427,127.88,127.86,16.40081819]
[1765914382795,3.15627427,127.87,127.86,8.58]
[1765914384203,0.71,127.86,127.81,20.2799533]
[1765914384374,0.71,127.84,127.82,8.58]
[1765914384571,0.71,127.83,127.82,8.58]
[1765914384768,0.71,127.84,127.82,16.40333481]
[1765914384973,0.71,127.85,127.82,17.12333481]
[1765914385195,0.71,127.84,127.82,16.40333481]
[1765914387881,2.44627427,127.83,127.79,0.72]
[1765914388201,3.15627427,127.82,127.8,8.58]
[1765914388499,0.71,127.82,127.8,8.58]
[1765914388886,0.71,127.81,127.8,8.58]
[1765914390396,0.71,127.8,127.76,7.82688616]
[1765914390595,0.71,127.78,127.77,8.58]
[1765914391099,3.15627427,127.78,127.77,8.58]
[1765914391278,0.71,127.77,127.75,16.40756602]
[1765914391693,0.71,127.78,127.76,7.82715174]
[1765914392699,0.71,127.78,127.75,16.4075092]
[1765914392881,0.71,127.78,127.75,17.1275092]
[1765914393077,0.71,127.76,127.72,0.72]
[1765914393283,0.71,127.75,127.73,16.40879944]
[1765914393701,0.71,127.74,127.73,8.58]
[1765914394596,0.71,127.77,127.73,17.05896259]
[1765914394789,11.14767296,127.77,127.74,0.71]
[1765914395098,11.14767296,127.77,127.73,17.11896259]
[1765914395293,0.71,127.77,127.73,16.40896259]
[1765914395496,0.67,127.78,127.74,0.71]
[1765914395689,0.67,127.79,127.75,0.71]
[1765914396001,0.67,127.79,127.76,17.11717595]
[1765914396205,0.67,127.79,127.76,16.40717595]
[1765914396411,10.27161681,127.79,127.76,16.40717595]
[1765914396591,0.67,127.8,127.76,17.11717595]
[1765914396904,0.67,127.79,127.76,17.11717595]
[1765914397686,0.67,127.79,127.76,36.68511583]
[1765914397881,7.23071277,127.78,127.76,16.40717595]
[1765914398411,7.23071277,127.79,127.76,16.40717595]
[1765914399196,0.67,127.78,127.76,16.40717595]
[1765914400023,0.67,127.77,127.76,16.40717595]
[1765914400416,7.23071277,127.78,127.76,16.40717595]
[1765914400913,0.67,127.77,127.76,16.40717595]
[1765914401206,0.67,127.77,127.74,8.58]
[1765914401207,0.67,127.76,127.74,8.58]
[1765914401611,7.23071277,127.76,127.74,8.58]
[1765914402113,0.67,127.75,127.74,8.58]
[1765914403588,0.67,127.74,127.72,8.58]
[1765914404109,6.56071277,127.75,127.72,8.58]
[1765914404300,0.67,127.75,127.72,9.29]
[1765914404907,0.67,127.75,127.72,8.58]
[1765914405103,14.38858142,127.75,127.72,16.40956067]
[1765914405305,0.67,127.73,127.72,8.58]
[1765914405494,0.67,127.73,127.7,16.41053833]
[1765914405904,0.67,127.73,127.71,7.83018437]
[1765914407118,7.23071277,127.74,127.71,7.83018437]
[1765914407419,0.67,127.73,127.7,17.12064506]
[1765914409018,7.82921851,127.73,127.7,16.41064506]
[1765914409206,8.49921851,127.73,127.7,16.41064506]
[1765914409415,0.67,127.72,127.7,16.41064506]
[1765914409607,15.06602423,127.73,127.7,17.12064506]
[1765914410627,0.67,127.75,127.7,36.69777896]
[1765914410928,0.67,127.74,127.7,36.69777896]
[1765914411132,0.67,127.73,127.7,16.41064506]
[1765914411298,0.67,127.73,127.7,17.12064506]
[1765914413207,7.23680572,127.73,127.7,17.12064506]
[1765914414130,15.06585487,127.73,127.7,16.41064506]
[1765914414425,14.39585487,127.73,127.7,16.41064506]
[1765914414632,0.67,127.72,127.7,16.41064506]
[1765914415610,7.82975904,127.72,127.7,8.58]
[1765914415810,0.67,127.71,127.7,8.58]
[1765914416026,0.67,127.71,127.68,16.41179102]
[1765914416219,0.67,127.7,127.68,16.41179102]
[1765914417214,0.67,127.71,127.68,17.12179102]
[1765914417417,0.67,127.7,127.68,8.58]
[1765914417630,0.67,127.7,127.68,16.41206658]
[1765914419810,2.45290941,127.69,127.65,0.71]
[1765914420026,0.67,127.68,127.66,16.41318063]
[1765914420428,2.45290941,127.69,127.66,16.41318063]
[1765914420617,7.83094215,127.7,127.66,8.58]
[1765914420618,2.45290941,127.68,127.66,8.58]
[1765914420817,10.95560307,127.67,127.66,8.58]
[1765914421133,0.67,127.66,127.63,8.58]
[1765914421338,0.67,127.64,127.63,8.58]
[1765914421711,4.50603794,127.65,127.63,8.58]
[1765914422433,0.67,127.64,127.63,8.58]
[1765914422618,4.50603794,127.65,127.63,16.41511842]
[1765914422820,0.67,127.66,127.63,17.12511842]
[1765914423023,0.67,127.66,127.63,16.41511842]
[1765914423331,12.3387316,127.67,127.63,17.12511842]
[1765914423515,0.67,127.66,127.63,17.12511842]
[1765914424535,8.50227466,127.68,127.64,0.69]
[1765914424718,0.67,127.67,127.64,0.69]
[1765914424919,4.50603794,127.67,127.64,8.52423825]
[1765914425623,4.50603794,127.66,127.63,16.41482445]
[1765914426137,4.50603794,127.66,127.63,17.10482445]
[1765914426715,3.83603794,127.66,127.63,16.41482445]
[1765914426928,0.67,127.65,127.63,8.58]
[1765914427135,4.50603794,127.65,127.63,8.58]
[1765914427332,0.67,127.65,127.63,8.58]
[1765914427630,0.67,127.65,118.56,0.91499545]
[1765914427631,0.67,127.62,127.57,27.42893]
[1765914427836,3.83603794,127.6,127.57,28.11893]
[1765914428128,3.83603794,127.6,127.57,17.10857431]
[1765914428330,4.50603794,127.6,127.58,7.83817642]
[1765914428830,3.83603794,127.61,127.58,7.83817642]
[1765914429230,4.50603794,127.6,127.57,17.10863304]
[1765914429424,4.50603794,127.6,127.57,16.41863304]
[1765914429635,0.67,127.59,127.57,16.41863304]
[1765914430046,3.83603794,127.6,127.57,16.41863304]
[1765914430234,0.67,127.62,127.58,0.69]
[1765914430440,4.50603794,127.63,127.58,0.69]
[1765914431117,4.50603794,127.63,127.59,8.52760482]
[1765914431437,0.67,127.62,127.59,8.52760482]
[1765914431836,0.67,127.6,127.58,7.83793042]
[1765914432025,4.50603794,127.6,127.57,16.41876336]
[1765914432226,0.67,127.59,127.57,8.58]
[1765914432736,4.50603794,127.6,127.57,9.27]
[1765914433133,0.67,127.59,127.57,8.58]
[1765914433738,19.201799,127.6,127.57,8.58]
[1765914433943,0.67,127.58,127.57,8.58]
[1765914434447,11.36454226,127.59,127.57,8.58]
[1765914434625,11.36454226,127.59,127.55,17.30982893]
[1765914435023,11.36454226,127.59,127.56,8.52937488]
[1765914435740,0.67,127.59,127.56,8.52937488]
[1765914436149,8.50768306,127.59,127.56,7.83937488]
[1765914436526,19.20222532,127.59,127.56,7.83937488]
[1765914437323,0.67,127.59,127.56,7.83937488]
[1765914437524,19.20030467,127.62,127.58,0.69]
[1765914437834,19.20030467,127.62,127.59,0.69]
[1765914438030,0.67,127.62,127.59,0.69]